Workbook

Sheet BP 2011
A2: fonctionnement | B2: 2011 | C2: subventions=>65 | D2: =SUM(D3:D21) -> 4558 | E2: Particip=>65 | F2: =SUM(F3:F13) -> 39370
A3: Dépenses | B3: =SUM(B4:B17) -> 368488 | C3: Comité de fêtes | D3: 500 | H3: Investissement
A4: générales 011 | B4: =F16+F17 -> 65000 | C4: ADMR | D4: 90 | E4: Perte sur créance | F4: 1250 | H4: Invest Diff | I4: =I24-I5 -> -1499.79
A5: personnel 012 | B5: =127560-D26 -> 110560 | C5: Chasse | D5: 170 | H5: Dépenses | I5: =SUM(I6:I23) -> 586137.19
A6: gest courante 65 | B6: =D2+F2+D26 -> 60928 | C6: Anc Comb | D6: 170 | E6: Sivos ATAV * | F6: =(4000)+13*2200 -> 32600
A7: charges financière 66 | B7: 25335 | C7: Club cyclo | D7: 390
A8: charges exceptio 67 | B8: 0 | C8: Mnt | D8: 250 | E8: Syndicat Elect | F8: 1320
A9: amortissement 68 | C9: Ass Maire | D9: 209 | E9: Fourrière | F9: 250
A10: revers sur rec 739 | C10: TS16 | D10: 150 | E10: SDITEC | F10: 1700 | H10: RAR | I10: =K23 -> 52605 | J10: RAR dépenses | K10: Reste | L10: cpl | M10: Total
A11: dépenses imprévues 022 | B11: 0 | C11: CCAS | D11: 1400 | E11: CLIS MANSLE | F11: 1000 | H11: cpl 2010 sur op existantes | I11: =L23 -> 446665 | J11: Caution cpte 165 | K11: 600 | M11: =K11+L11 -> 600
A12: virement invest 023 | B12: 106665 | C12: Club Aînés | D12: 350 | E12: Maternelle mansle | F12: 1250 | H12: D001 | I12: 35635.19 | K12: 0 | M12: =K12+L12 -> 0
A13: déficit reporté 002 | C13: CJM | D13: 90 | H13: 24 FDAC 2011 | I13: =Prévision!C18 -> 13500 | L13: 0 | M13: 0
A14: dot Amo 042 | B14: 0 | C14: Aipe | D14: 250 | H14: Emprunt | J14: 35 voirie | K14: 2000 | M14: 2000
C15: course montignac | D15: 75 | E15: détails du 011 | J15: 41 traverse de ravaud | K15: 10905 | L15: =432400-K15 -> 421495 | M15: 432400
C16: APISAB | D16: 90 | E16: Divers | F16: 49000 | M16: 0
C17: Banque Alimentaire | D17: 90 | E17: Ecole | F17: 16000 | J17: 45 OP Communale | K17: 9100 | L17: =Prévision!C16-'BP 2011'!K17 -> 25170 | M17: 34270
C18: FCOL | D18: 75 | J18: remb prêt TVA | K18: 30000 | L18: 0 | M18: 30000
A19: Recettes | B19: =SUM(B20:B34) -> 237636 | C19: Donneurs de sang | D19: 90 | J19: op non affectée | M19: 0
A20: Service et domaine 70 | B20: 15000 | C20: Musique | D20: 75 | H20: Remb emprunt | I20: 37732 | M20: 0
A21: Travaux en régie 72 | C21: Razed | D21: 44 | K21: 0 | M21: 0
A22: impôts et taxes 73 | B22: =B52 -> 159456 | H22: Dépenses Imp. INV | I22: 0 | M22: 0
A23: dotation sub 74 | B23: l | J23: total | K23: =SUM(K11:K22) -> 52605 | L23: =SUM(L11:L22) -> 446665 | M23: =SUM(M11:M22) -> 499270
A24: produits gest cour 75 | B24: 32000 | H24: Recette | I24: =SUM(I25:I39) -> 584637.4
A25: produit financiers 76 | H25: Report 023 | I25: =B12 -> 106665
A26: produits exceptio 77 | B26: 4600 | C26: ind. Élus+ retraite | D26: 17000 | H26: CPL SUR rar | I26: =L39 -> 252956 | J26: RAR Recette | K26: Reste | L26: cpl | M26: Total
A27: reprise sur amort 78 | B27: 0 | H27: FCTVA | I27: 8100 | J27: caution | K27: 600 | L27: 0 | M27: =K27+L27 -> 600
A28: transfert charges 79 | F28: Balance inter section | H28: R001 | J28: 41 traverse de ravaud | K28: 3135 | L28: =55831+37221+37221+92683+30000 -> 252956 | M28: 256091
A29: atténuat charges 013 | B29: =12000+2163 -> 14163 | F29: =D30+I4 -> -132351.79 | H29: 1068 | I29: 77505 | J29: 35 voirie | K29: 7000 | M29: 7000
A30: excédent reporté 002 | B30: =89922-I29 -> 12417 | C30: diff fonct | D30: =B19-B3 -> -130852 | H30: RAR | I30: =K39 -> 10735 | M30: 0
H31: Prêt relais à 2014 | I31: =Prévision!E17 -> 62306.4 | M31: 0
H32: Prêt Ravaud | I32: 66370 | M32: 0
M33: 0
M34: 0
M35: 0
M36: 0
M37: 0
M38: 0
I39: 0 | J39: Total | K39: =SUM(K27:K38) -> 10735 | L39: =SUM(L27:L38) -> 252956 | M39: =SUM(M27:M38) -> 263691
A40: Dotations | B40: 2011 | C40: 2010 | D40: 2009 | E40: DELTA
A41: chapitre 74 | B41: =SUM(B42:B50) -> 130852 | C41: =SUM(C42:C47) -> 86689 | D41: =SUM(D42:D47) -> 87661 | E41: =C41-D41 -> -972
A42: Cpte 7411 dgf forfaitaire | B42: =78425-B43-B44 -> 67504 | C42: 66917 | D42: =28878+5651+22018+11008 -> 67555 | E42: =C42-D42 -> -638
A43: cpte74121 dsr | B43: 8128 | C43: 7922 | D43: 7922 | E43: 0
A44: cpte 742 élus locaux | B44: 2793 | C44: 2783 | D44: 2762 | E44: 21
A45: cpte74883* compens TP | B45: 554 | C45: =481+43+95+23 -> 642 | D45: =25+104+514 -> 643 | E45: -1 | H45: A 4% un emprunt de 80 000€ sur 20 ans c'est 6K€ par an et sur 10 ans c'est 9K€
A46: cpte 74834*Compens TF | B46: =923+4717 -> 5640 | C46: =4707+1235 -> 5942 | D46: =1451+4679 -> 6130 | E46: -188
A47: Cpte 74835* compens TH | B47: 4240 | C47: 2483 | D47: 2649 | E47: -166
A48: total compensation | B48: =SUM(B45:B47) -> 10434 | C48: =SUM(C45:C47) -> 9067 | D48: =SUM(D45:D47) -> 9422
A49: 7482 compen Mutations | B49: 7900
A50: GIR | B50: 23659
A52: Chapitre 73 | B52: =SUM(B53:B55) -> 159456 | C52: =SUM(C53:C55) -> 174536 | D52: =SUM(D53:D55) -> 165801
A53: cpte 7311 impôts | B53: 149163 | C53: 100024 | D53: 151701 | F53: 2010
A54: cpte 7381 droit mutation | B54: 0 | C54: 7915 | D54: 14100 | F54: compte 7311 : 100.024,00 €
A55: 7318 - Autres impôts locaux ou assimilés | B55: =271+2186+7836 -> 10293 | C55: =C60+C61 -> 66597 | F55: - compte 7318 : 66.597,00 € | H55: +
F56: - compte 7381 : 7.915,00 €
C57: 33129 | D57: TH
C58: 47922 | D58: TFB
C59: 18973 | D59: TFNB
C60: 66597 | D60: TP 1compo
C61: 0 | D61: TP2 compo | F61: 2010-03-31
C62: =SUM(C57:C61) -> 166621
B65: 149163

Sheet Prévision
B1: DM | C1: BP 2011
A2: cuve fioul | C2: 1200
A3: Divers out et matos | C3: 500
A4: Portique | C4: 650
A5: récup Tombes 33 | C5: 9900
A6: Défibrilateur | C6: 2000
A7: Haie bache incendie | C7: 400
A8: Marteaux | C8: 300
A9: Mur Cimetière | C9: 400 | F9: =1/0.196 -> 5.102040816
A10: Tableau+ Robinet chauf.+ Plafond ECOLE | C10: =150+540+300 -> 990
A11: Colombarium- Osuaire | C11: 6030
A12: SOCOTEC TRX Elect | C12: 1000
A13: Podium | C13: 3600
A14: banquette vadalle + mur RD15 accidenté | C14: =200+4600 -> 4800 | I14: =100-19.6 -> 80.4
A15: Parking aussac + Toit Mairie | C15: =1000+1500 -> 2500
B16: sous total | C16: =SUM(C2:C15) -> 34270
A17: Traverse de ravaud | C17: =368200+12000+19200+33000 -> 432400 | D17: FTVA | E17: =(C17-33000)*0.156 -> 62306.4
A18: FDAC 2011 | C18: 13500
A19: Total | B19: =SUM(B2:B18) -> 0 | C19: =SUM(C2:C18) -> 514440

Sheet salaires
A1: Simulation SALAIRES
B4: brut | C4: ch patronales | D4: total | E4: 2010 | F4: remb
A5: Titulaires
A6: BAUD 35 h | B6: 680 | C6: 205.82 | D6: =B6+C6 -> 885.82 | E6: =D6+(680+680+680) -> 2925.82 | F6: =1004.66+1561.89+677.27+677.27 -> 3921.09
A7: Françoise 29,5h | B7: 1187 | C7: 565 | D7: 1752 | E7: =SUM(D7+1752+((1206+574)*10)) -> 21304
A8: Sabrina 35h | B8: 1501 | C8: 675 | D8: 2176 | E8: =D8*12 -> 26112
A9: Daniel 17,5 h | B9: 808 | C9: 348 | D9: 1156 | E9: =D9*12 -> 13872
A10: Pascal | B10: 1625 | C10: 715 | D10: 2340 | E10: =D10*12 -> 28080
A11: Sarah 8 h | B11: 325 | C11: 135 | D11: 460 | E11: =D11*5 -> 2300
A12: Christelle 14h | B12: 611 | C12: 252 | D12: 863 | E12: =D12*12 -> 10356
A15: GENERAL | B15: =SUM(B6:B13) -> 6737 | C15: =SUM(C6:C13) -> 2895.82 | E15: =SUM(E6:E14) -> 104949.82
A20: indemnités ELUS | E20: 2010
A21: g LIOT | B21: 644 | C21: 22 | D21: =B21+C21 -> 666 | E21: =D21*12 -> 7992
A22: Martine | B22: 250 | C22: 9 | D22: =B22+C22 -> 259 | E22: =D22*12 -> 3108
A23: Luc | B23: 250 | C23: 9 | D23: =B23+C23 -> 259 | E23: =D23*12 -> 3108
A24: Jacky | B24: 125 | C24: 5 | D24: =B24+C24 -> 130 | E24: =D24*12 -> 1560
A25: peze | E25: 400
E26: =SUM(E21:E25) -> 16168
